fUST/lending_fUST_20240430
["ID","MTS","AMOUNT","RATE_DAILY","PERIOD"]
[324970812,1714480282959,-500.0,0.00034246,7]
[324970813,1714480282968,-523.81,0.00034246,7]
[324970814,1714480282978,-890.43,0.00034246,7]
[324970815,1714480282987,-500.0,0.00034246,7]
[324970816,1714480282997,-500.0,0.00034246,7]
[324970817,1714480283007,-1768.07,0.00034246,7]
[324970818,1714480283017,-500.0,0.00034246,7]
[324970819,1714480283027,-1498.98,0.00034246,7]
[324970820,1714480283037,-500.0,0.00034246,7]
[324970821,1714480283047,-500.0,0.00034246,7]
[324970822,1714480283059,-592.21664608,0.00034246,7]
[324970823,1714480283069,-882.34,0.00034246,7]
[324970824,1714480283080,-500.0,0.00034246,7]
[324970825,1714480283089,-894.99,0.00034246,7]
[324970826,1714480283099,-599.82,0.00034246,7]
[324970827,1714480283109,-785.65,0.00034246,7]
[324970828,1714480283118,-500.0,0.00034246,7]
[324970829,1714480283127,-500.0,0.00034246,7]
[324970830,1714480283137,-559.33,0.00034246,7]
[324970831,1714480283147,-500.0,0.00034246,7]
[324970832,1714480283157,-500.0,0.00034246,7]
[324970833,1714480283166,-500.0,0.00034246,2]
[324970834,1714480283176,-1442.92,0.00034246,7]
[324970835,1714480283185,-500.0,0.00034246,7]
[324970836,1714480283195,-500.0,0.00034246,7]
[324970837,1714480283204,-500.0,0.00034246,7]
[324970838,1714480283214,-500.0,0.00034246,7]
[324970839,1714480283223,-728.48,0.00034246,7]
[324970840,1714480283232,-500.0,0.00034246,7]
[324970841,1714480283241,-500.0,0.00034246,7]
[324970842,1714480283250,-500.0,0.00034246,7]
[324970843,1714480283260,-554.17,0.00034246,7]
[324970844,1714480283269,-500.0,0.00034246,7]
[324970845,1714480283278,-672.86,0.00034246,7]
[324970846,1714480283287,-1006.99,0.00034246,7]
[324970847,1714480283296,-1748.77,0.00034246,7]
[324970848,1714480283310,-652.12,0.00034246,7]
[324970849,1714480283319,-570.84,0.00034246,7]
[324970850,1714480283329,-500.0,0.00034246,7]
[324970851,1714480283338,-1498.55,0.00034246,7]
[324970852,1714480283347,-500.0,0.00034246,7]
[324970853,1714480283356,-500.0,0.00034246,7]
[324970854,1714480283365,-500.0,0.00034246,7]
[324970855,1714480283374,-500.0,0.00034246,7]
[324970856,1714480283383,-500.0,0.00034246,7]
[324970857,1714480283392,-500.0,0.00034246,7]
[324970858,1714480283401,-509.77,0.00034246,7]
[324970859,1714480283411,-500.0,0.00034246,7]
[324970860,1714480283420,-574.86,0.00034246,7]
[324970861,1714480283429,-652.87,0.00034246,7]
[324970862,1714480283438,-500.0,0.00034246,7]
[324970863,1714480283448,-638.59,0.00034246,7]
[324970864,1714480283457,-500.0,0.00034246,7]
[324970865,1714480283466,-1324.85,0.00034246,7]
[324970866,1714480283476,-164.94051168,0.00034246,7]
[324970867,1714480283485,-511.97,0.00034246,7]
[324970868,1714480283494,-1440.78,0.00034246,7]
[324970869,1714480283503,-382.52957981,0.00034246,7]
[324970870,1714480283513,-598.74,0.00034246,7]
[324970871,1714480283523,-911.25,0.00034246,7]
[324970872,1714480283532,-500.0,0.00034246,7]
[324970873,1714480283542,-630.12,0.00034246,7]
[324970874,1714480283551,-1896.05,0.00034246,7]
[324970875,1714480283566,-903.11,0.00034246,7]
[324970876,1714480283575,-1752.96,0.00034246,7]
[324970877,1714480283584,-2770.12,0.00034246,7]
[324970878,1714480283594,-500.0,0.00034246,7]
[324970879,1714480283603,-2114.85,0.00034246,7]
[324970880,1714480283612,-500.0,0.00034246,7]
[324970881,1714480283621,-500.0,0.00034246,7]
[324970882,1714480283630,-500.0,0.00034246,7]
[324970883,1714480283639,-657.48,0.00034246,7]
[324970884,1714480283648,-500.0,0.00034246,7]
[324970885,1714480283658,-500.0,0.00034246,7]
[324970886,1714480283672,-577.33,0.00034246,7]
[324970887,1714480283681,-594.83,0.00034246,7]
[324970888,1714480283691,-527.95,0.00034246,7]
[324970889,1714480283700,-937.55,0.00034246,7]
[324970890,1714480283711,-382.86747238,0.00034246,7]
[324970891,1714480283721,-500.0,0.00034246,7]
[324970892,1714480283730,-1269.88,0.00034246,7]
[324970893,1714480283740,-500.0,0.00034246,7]
[324970894,1714480283749,-846.37,0.00034246,7]
[324970895,1714480283760,-500.0,0.00034246,7]
[324970896,1714480283769,-500.0,0.00034246,7]
[324970897,1714480283779,-1025.5,0.00034246,7]
[324970898,1714480283789,-8014.06,0.00034246,7]
[324970899,1714480283798,-2622.44,0.00034246,7]
[324970900,1714480283891,-500.0,0.00034246,7]
[324970901,1714480283909,-685.27,0.00034246,7]
[324970902,1714480283919,-804.08,0.00034246,7]
[324970903,1714480283928,-500.0,0.00034246,7]
[324970904,1714480283938,-500.0,0.00034246,7]
[324970905,1714480283948,-532.84,0.00034246,7]
[324970906,1714480283958,-1006.5,0.00034246,7]
[324970907,1714480283967,-1897.04,0.00034246,7]
[324970908,1714480283977,-560.38,0.00034246,7]
[324970909,1714480283986,-500.0,0.00034246,7]
[324970910,1714480283995,-603.01,0.00034246,7]
[324970911,1714480284006,-530.17,0.00034246,7]
[324970912,1714480284016,-921.22,0.00034246,7]
[324970913,1714480284026,-513.6,0.00034246,7]
[324970914,1714480284036,-928.29,0.00034246,7]
[324970915,1714480284048,-500.0,0.00034246,7]
[324970916,1714480284062,-3236.72,0.00034246,7]
[324970917,1714480284072,-366.3222591,0.00034246,7]
[324970918,1714480284082,-500.0,0.00034246,7]
[324970919,1714480284092,-505.64,0.00034246,7]
[324970920,1714480284102,-1780.15,0.00034246,7]
[324970921,1714480284111,-500.0,0.00034246,7]
[324970922,1714480284122,-500.0,0.00034246,7]
[324970923,1714480284131,-577.75,0.00034246,7]
[324970924,1714480284141,-500.0,0.00034246,7]
[324970925,1714480284150,-1137.4,0.00034246,7]
[324970926,1714480284159,-933.38,0.00034246,7]
[324970927,1714480284169,-500.0,0.00034246,7]
[324970928,1714480284179,-500.0,0.00034246,7]
[324970929,1714480284189,-1628.49,0.00034246,7]
[324970930,1714480284199,-500.0,0.00034246,7]
[324970931,1714480284208,-556.41,0.00034246,7]
[324970932,1714480284218,-500.0,0.00034246,7]
[324970933,1714480284228,-3242.44,0.00034246,7]
[324970934,1714480284237,-611.4,0.00034246,7]
[324970935,1714480284247,-500.0,0.00034246,7]
[324970936,1714480284256,-500.0,0.00034246,7]
[324970937,1714480284266,-2127.99,0.00034246,7]
[324970938,1714480284276,-500.0,0.00034246,7]
[324970939,1714480284285,-799.99,0.00034246,7]
[324970940,1714480284295,-1320.84,0.00034246,7]
[324970941,1714480284304,-500.0,0.00034246,7]
[324970942,1714480284319,-518.31,0.00034246,7]
[324970943,1714480284328,-500.0,0.00034246,7]
[324970944,1714480284338,-500.0,0.00034246,7]
[324970945,1714480284347,-654.2,0.00034246,7]
[324970946,1714480284357,-1525.02,0.00034246,7]
[324970947,1714480284366,-500.0,0.00034246,7]
[324970948,1714480284376,-545.68,0.00034246,7]
[324970949,1714480284386,-1273.96,0.00034246,7]
[324970950,1714480284395,-1761.83,0.00034246,7]
[324970951,1714480284404,-639.64,0.00034246,7]
[324970952,1714480284414,-500.0,0.00034246,7]
[324970953,1714480284424,-500.0,0.00034246,7]
[324970954,1714480284433,-555.04,0.00034246,7]
[324970955,1714480284442,-1774.44,0.00034246,7]
[324970956,1714480284451,-1354.57,0.00034246,7]
[324970957,1714480284461,-3447.14,0.00034246,7]
[324970958,1714480284470,-786.77,0.00034246,7]
[324970959,1714480284480,-707.6,0.00034246,7]
[324970960,1714480284490,-569.7,0.00034246,7]
[324970961,1714480284499,-500.0,0.00034246,7]
[324970962,1714480284509,-335.51373884,0.00034246,7]
[324970963,1714480284518,-751.5,0.00034246,7]
[324970964,1714480284528,-500.0,0.00034246,7]
[324970965,1714480284538,-500.0,0.00034246,7]
[324970966,1714480284547,-500.0,0.00034246,7]
[324970967,1714480284557,-500.0,0.00034246,30]
[324970968,1714480284570,-1391.74,0.00034246,7]
[324970969,1714480284579,-1469.45,0.00034246,7]
[324970970,1714480284588,-500.0,0.00034246,7]
[324970971,1714480284597,-500.0,0.00034246,7]
[324970972,1714480284607,-153.8921486,0.00034361,7]
[324970973,1714480284616,-620.0,0.00034411,2]
[324970974,1714480284625,-200.0,0.000345,30]
[324970975,1714480284634,-999.19,0.0003452,7]
[324970976,1714480284643,-995.58,0.0003452,7]
[324970977,1714480284653,-513.93,0.0003452,7]
[324970978,1714480284664,-500.0,0.0003452,7]
[324970979,1714480284673,-500.0,0.0003452,3]
[324970980,1714480284682,-500.0,0.0003452,7]
[324970981,1714480284692,-716.63,0.0003452,7]
[324970982,1714480284702,-300.0,0.0003452,7]
[324970983,1714480284711,-500.0,0.0003452,7]
[324970984,1714480284720,-500.0,0.0003452,7]
[324970985,1714480284730,-500.0,0.0003452,7]
[324970986,1714480284742,-500.0,0.0003452,7]
[324970987,1714480284753,-500.0,0.0003452,7]
[324970988,1714480284762,-500.0,0.0003452,7]
[324970989,1714480284771,-523.81,0.0003452,7]
[324970990,1714480284781,-890.43,0.0003452,7]
[324970991,1714480284790,-500.0,0.0003452,7]
[324970992,1714480284800,-500.0,0.0003452,7]
[324970993,1714480284813,-1768.07,0.0003452,7]
[324970994,1714480284822,-500.0,0.0003452,7]
[324970995,1714480284832,-1498.98,0.0003452,7]
[324970996,1714480284841,-500.0,0.0003452,7]
[324970997,1714480284850,-500.0,0.0003452,7]
[324970998,1714480284860,-882.34,0.0003452,7]
[324970999,1714480284869,-263.0925182,0.0003452,7]
[324971000,1714480284878,-894.99,0.0003452,7]
[324971001,1714480284888,-599.82,0.0003452,7]
[324971002,1714480284897,-785.65,0.0003452,7]
[324971003,1714480284907,-500.0,0.0003452,7]
[324971004,1714480284916,-500.0,0.0003452,7]
[324971005,1714480284926,-559.33,0.0003452,7]
[324971006,1714480284936,-500.0,0.0003452,7]
[324971007,1714480284945,-500.0,0.0003452,7]
[324971008,1714480284955,-500.0,0.0003452,2]
[324971009,1714480284965,-1442.92,0.0003452,7]
[324971010,1714480284974,-500.0,0.0003452,7]
[324971011,1714480284983,-500.0,0.0003452,7]
[324971012,1714480284993,-500.0,0.0003452,7]
[324971013,1714480285002,-500.0,0.0003452,7]
[324971014,1714480285011,-728.48,0.0003452,7]
[324971015,1714480285020,-500.0,0.0003452,7]
[324971016,1714480285030,-500.0,0.0003452,7]
[324971017,1714480285040,-500.0,0.0003452,7]
[324971018,1714480285049,-554.17,0.0003452,7]
[324971019,1714480285060,-500.0,0.0003452,7]
[324971020,1714480285069,-672.86,0.0003452,7]
[324971021,1714480285079,-1006.99,0.0003452,7]
[324971022,1714480285088,-1748.77,0.0003452,7]
[324971023,1714480285097,-652.12,0.0003452,7]
[324971024,1714480285107,-570.84,0.0003452,7]
[324971025,1714480285117,-500.0,0.0003452,7]
[324971026,1714480285126,-1498.55,0.0003452,7]
[324971027,1714480285136,-500.0,0.0003452,7]
[324971028,1714480285144,-500.0,0.0003452,7]
[324971029,1714480285154,-500.0,0.0003452,7]
[324971030,1714480285163,-500.0,0.0003452,7]
[324971031,1714480285173,-500.0,0.0003452,7]
[324971032,1714480285183,-500.0,0.0003452,7]
[324971033,1714480285192,-509.77,0.0003452,7]
[324971034,1714480285201,-500.0,0.0003452,7]
[324971035,1714480285211,-574.86,0.0003452,7]
[324971036,1714480285220,-652.87,0.0003452,7]
[324971037,1714480285230,-500.0,0.0003452,7]
[324971038,1714480285239,-638.59,0.0003452,7]
[324971039,1714480285248,-500.0,0.0003452,7]
[324971040,1714480285259,-1324.85,0.0003452,7]
[324971041,1714480285268,-511.97,0.0003452,7]
[324971042,1714480285278,-1440.78,0.0003452,7]
[324971043,1714480285288,-598.74,0.0003452,7]
[324971044,1714480285383,-911.25,0.0003452,7]
[324971045,1714480285393,-500.0,0.0003452,7]
[324971046,1714480285404,-630.12,0.0003452,7]
[324971047,1714480285414,-1896.05,0.0003452,7]
[324971048,1714480285424,-903.11,0.0003452,7]
[324971049,1714480285434,-1752.96,0.0003452,7]
[324971050,1714480285444,-2770.12,0.0003452,7]
[324971051,1714480285453,-500.0,0.0003452,7]
[324971052,1714480285463,-2114.85,0.0003452,7]
[324971053,1714480285473,-500.0,0.0003452,7]
[324971054,1714480285483,-500.0,0.0003452,7]
[324971055,1714480285492,-500.0,0.0003452,7]
[324971056,1714480285502,-657.48,0.0003452,7]
[324971057,1714480285511,-500.0,0.0003452,7]
[324971058,1714480285521,-500.0,0.0003452,7]
[324971059,1714480285530,-577.33,0.0003452,7]
[324971060,1714480285540,-594.83,0.0003452,7]
[324971061,1714480285549,-527.95,0.0003452,7]
[324971062,1714480285561,-937.55,0.0003452,7]
[324971063,1714480285570,-607.37778778,0.0003452,7]
[324971064,1714480285579,-1269.88,0.0003452,7]
[324971065,1714480285590,-500.0,0.0003452,7]
[324971066,1714480285599,-846.37,0.0003452,7]
[324971067,1714480285608,-434.97621626,0.0003452,7]
[324971068,1714480285618,-500.0,0.0003452,7]
[324971069,1714480285627,-1025.5,0.0003452,7]
[324971070,1714480285638,-8014.06,0.0003452,7]
[324971071,1714480285648,-2622.44,0.0003452,7]
[324971072,1714480285658,-500.0,0.0003452,7]
[324971073,1714480285668,-685.27,0.0003452,7]
[324971074,1714480285680,-804.08,0.0003452,7]
[324971075,1714480285690,-500.0,0.0003452,7]
[324971076,1714480285699,-646.58489573,0.0003452,7]
[324971077,1714480285708,-532.84,0.0003452,7]
[324971078,1714480285718,-1006.5,0.0003452,7]
[324971079,1714480285728,-1897.04,0.0003452,7]
[324971080,1714480285738,-560.38,0.0003452,7]
[324971081,1714480285747,-500.0,0.0003452,7]
[324971082,1714480285759,-603.01,0.0003452,7]
[324971083,1714480285769,-530.17,0.0003452,7]
[324971084,1714480285779,-921.22,0.0003452,7]
[324971085,1714480285790,-513.6,0.0003452,7]
[324971086,1714480285800,-928.29,0.0003452,7]
[324971087,1714480285811,-500.0,0.0003452,7]
[324971088,1714480285820,-3236.72,0.0003452,7]
[324971089,1714480285830,-500.0,0.0003452,7]
[324971090,1714480285840,-505.64,0.0003452,7]
[324971091,1714480285849,-1780.15,0.0003452,7]
[324971092,1714480285859,-500.0,0.0003452,7]
[324971093,1714480285868,-500.0,0.0003452,7]
[324971094,1714480285877,-577.75,0.0003452,7]
[324971095,1714480285887,-500.0,0.0003452,7]
[324971096,1714480285896,-1137.4,0.0003452,7]
[324971097,1714480285905,-933.38,0.0003452,7]
[324971098,1714480285914,-500.0,0.0003452,7]
[324971099,1714480285924,-500.0,0.0003452,7]
[324971100,1714480285933,-500.0,0.0003452,7]
[324971101,1714480285943,-1628.49,0.0003452,7]
[324971102,1714480285952,-556.41,0.0003452,7]
[324971103,1714480285962,-500.0,0.0003452,7]
[324971104,1714480285971,-3242.44,0.0003452,7]
[324971105,1714480285981,-611.4,0.0003452,7]
[324971106,1714480285990,-500.0,0.0003452,7]
[324971107,1714480286000,-500.0,0.0003452,7]
[324971108,1714480286010,-2127.99,0.0003452,7]
[324971109,1714480286020,-500.0,0.0003452,7]
[324971110,1714480286030,-799.99,0.0003452,7]
[324971111,1714480286048,-1320.84,0.0003452,7]
[324971112,1714480286068,-500.0,0.0003452,7]
[324971113,1714480286089,-518.31,0.0003452,7]
[324971114,1714480286109,-500.0,0.0003452,7]
[324971115,1714480286127,-500.0,0.0003452,7]
[324971116,1714480286146,-654.2,0.0003452,7]
[324971117,1714480286162,-1525.02,0.0003452,7]
[324971118,1714480286179,-500.0,0.0003452,7]
[324971119,1714480286197,-545.68,0.0003452,7]
[324971120,1714480286218,-1273.96,0.0003452,7]
[324971121,1714480286231,-1761.83,0.0003452,7]
[324971122,1714480286252,-639.64,0.0003452,7]
[324971123,1714480286267,-500.0,0.0003452,7]
[324971124,1714480286283,-500.0,0.0003452,7]
[324971125,1714480286298,-555.04,0.0003452,7]
[324971126,1714480286317,-1774.44,0.0003452,7]
[324971127,1714480286332,-1354.57,0.0003452,7]
[324971128,1714480286347,-3447.14,0.0003452,7]
[324971129,1714480286363,-786.77,0.0003452,7]
[324971130,1714480286378,-707.6,0.0003452,7]
[324971131,1714480286392,-569.7,0.0003452,7]
[324971132,1714480286407,-500.0,0.0003452,7]
[324971133,1714480286422,-751.5,0.0003452,7]
[324971134,1714480286437,-500.0,0.0003452,7]
[324971135,1714480286452,-500.0,0.0003452,7]
[324971136,1714480286467,-500.0,0.0003452,7]
[324971137,1714480286482,-500.0,0.0003452,30]
[324971138,1714480286496,-1391.74,0.0003452,7]
[324971139,1714480286510,-1469.45,0.0003452,7]
[324971140,1714480286525,-500.0,0.0003452,7]
[324971141,1714480286539,-500.0,0.0003452,7]
[324971142,1714480286553,-239.692357,0.00034521,2]
[324971143,1714480286572,-282.941886,0.00034521,2]
[324971144,1714480286586,-159.152546,0.00034521,2]
[324971145,1714480286601,-417.0,0.00034549,2]
[324971146,1714480286615,-1255.4,0.00034696,7]
[324971147,1714480286630,-1271.66081619,0.00034728,12]
[324971148,1714480286645,-999.19,0.00034794,7]
[324971149,1714480286660,-995.58,0.00034794,7]
[324971150,1714480286676,-513.93,0.00034794,7]
[324971151,1714480286690,-500.0,0.00034794,7]
[324971152,1714480286705,-514.71469119,0.00034794,3]
[324971153,1714480286718,-500.0,0.00034794,7]
[324971154,1714480286733,-716.63,0.00034794,7]
[324971155,1714480286748,-300.0,0.00034794,7]
[324971156,1714480286763,-500.0,0.00034794,7]
[324971157,1714480286777,-500.0,0.00034794,7]
[324971158,1714480286792,-501.0,0.00034794,7]
[324971159,1714480286806,-500.0,0.00034794,7]
[324971160,1714480286821,-500.0,0.00034794,7]
[324971161,1714480286834,-500.0,0.00034794,7]
[324971162,1714480286851,-523.81,0.00034794,7]
[324971163,1714480286865,-890.43,0.00034794,7]
[324971164,1714480286882,-500.0,0.00034794,7]
[324971165,1714480286897,-500.0,0.00034794,7]
[324971166,1714480286911,-1768.07,0.00034794,7]
[324971167,1714480286925,-500.0,0.00034794,7]
[324971168,1714480286941,-1498.98,0.00034794,7]
[324971169,1714480286956,-500.0,0.00034794,7]
[324971170,1714480286970,-500.0,0.00034794,7]
[324971171,1714480286984,-882.34,0.00034794,7]
[324971172,1714480287000,-894.99,0.00034794,7]
[324971173,1714480287015,-599.82,0.00034794,7]
[324971174,1714480287029,-785.65,0.00034794,7]
[324971175,1714480287044,-500.0,0.00034794,7]
[324971176,1714480287164,-500.0,0.00034794,7]
[324971177,1714480287203,-559.33,0.00034794,7]
[324971178,1714480287213,-500.0,0.00034794,7]
[324971179,1714480287223,-500.0,0.00034794,7]
[324971180,1714480287232,-500.0,0.00034794,2]
[324971181,1714480287242,-1442.92,0.00034794,7]
[324971182,1714480287251,-500.0,0.00034794,7]
[324971183,1714480287261,-500.0,0.00034794,7]
[324971184,1714480287270,-500.0,0.00034794,7]
[324971185,1714480287279,-500.0,0.00034794,7]
[324971186,1714480287289,-728.48,0.00034794,7]
[324971187,1714480287298,-500.0,0.00034794,7]
[324971188,1714480287311,-500.0,0.00034794,7]
[324971189,1714480287320,-500.0,0.00034794,7]
[324971190,1714480287330,-554.17,0.00034794,7]
[324971191,1714480287339,-500.0,0.00034794,7]
[324971192,1714480287349,-672.86,0.00034794,7]
[324971193,1714480287359,-1006.99,0.00034794,7]
[324971194,1714480287369,-1748.77,0.00034794,7]
[324971195,1714480287378,-652.12,0.00034794,7]
[324971196,1714480287388,-570.84,0.00034794,7]
[324971197,1714480287397,-500.0,0.00034794,7]
[324971198,1714480287407,-1498.55,0.00034794,7]
[324971199,1714480287415,-500.0,0.00034794,7]
[324971200,1714480287425,-500.0,0.00034794,7]
[324971201,1714480287434,-500.0,0.00034794,7]
[324971202,1714480287443,-500.0,0.00034794,7]
[324971203,1714480287453,-297.56226102,0.00034794,7]
[324971204,1714480287462,-500.0,0.00034794,7]
[324971205,1714480287471,-509.77,0.00034794,7]
[324971206,1714480287480,-500.0,0.00034794,7]
[324971207,1714480287490,-574.86,0.00034794,7]
[324971208,1714480287499,-652.87,0.00034794,7]
[324971209,1714480287509,-500.0,0.00034794,7]
[324971210,1714480287518,-638.59,0.00034794,7]
[324971211,1714480287527,-338.22699436,0.00034794,7]
[324971212,1714480287537,-1324.85,0.00034794,7]
[324971213,1714480287547,-511.97,0.00034794,7]
[324971214,1714480287556,-1440.78,0.00034794,7]
[324971215,1714480287569,-598.74,0.00034794,7]
[324971216,1714480287579,-911.25,0.00034794,7]
[324971217,1714480287589,-500.0,0.00034794,7]
[324971218,1714480287599,-630.12,0.00034794,7]
[324971219,1714480287609,-1896.05,0.00034794,7]
[324971220,1714480287619,-903.11,0.00034794,7]
[324971221,1714480287628,-1752.96,0.00034794,7]
[324971222,1714480287638,-2770.12,0.00034794,7]
[324971223,1714480287648,-375.974301,0.00034794,7]
[324971224,1714480287657,-2114.85,0.00034794,7]
[324971225,1714480287667,-500.0,0.00034794,7]
[324971226,1714480287682,-500.0,0.00034794,7]
[324971227,1714480287692,-500.0,0.00034794,7]
[324971228,1714480287701,-657.48,0.00034794,7]
[324971229,1714480287714,-500.0,0.00034794,7]
[324971230,1714480287723,-500.0,0.00034794,7]
[324971231,1714480287733,-577.33,0.00034794,7]
[324971232,1714480287742,-594.83,0.00034794,7]
[324971233,1714480287752,-527.95,0.00034794,7]
[324971234,1714480287762,-937.55,0.00034794,7]
[324971235,1714480287771,-1269.88,0.00034794,7]
[324971236,1714480287780,-500.0,0.00034794,7]
[324971237,1714480287789,-846.37,0.00034794,7]
[324971238,1714480287799,-500.0,0.00034794,7]
[324971239,1714480287811,-1025.5,0.00034794,7]
[324971240,1714480287820,-8014.06,0.00034794,7]
[324971241,1714480287829,-2622.44,0.00034794,7]
[324971242,1714480287839,-500.0,0.00034794,7]
[324971243,1714480287849,-685.27,0.00034794,7]
[324971244,1714480287858,-804.08,0.00034794,7]
[324971245,1714480287868,-500.0,0.00034794,7]
[324971246,1714480287877,-532.84,0.00034794,7]
[324971247,1714480287887,-1006.5,0.00034794,7]
[324971248,1714480287897,-1897.04,0.00034794,7]
[324971249,1714480287906,-560.38,0.00034794,7]
[324971250,1714480287917,-500.0,0.00034794,7]
[324971251,1714480287927,-603.01,0.00034794,7]
[324971252,1714480287937,-530.17,0.00034794,7]
[324971253,1714480287948,-921.22,0.00034794,7]
[324971254,1714480287957,-513.6,0.00034794,7]
[324971255,1714480287967,-928.29,0.00034794,7]
[324971256,1714480287977,-500.0,0.00034794,7]
[324971257,1714480287986,-500.0,0.00034794,7]
[324971258,1714480287996,-3236.72,0.00034794,7]
[324971259,1714480288006,-505.64,0.00034794,7]
[324971260,1714480288015,-1780.15,0.00034794,7]
[324971261,1714480288024,-500.0,0.00034794,7]
[324971262,1714480288034,-500.0,0.00034794,7]
[324971263,1714480288043,-577.75,0.00034794,7]
[324971264,1714480288052,-500.0,0.00034794,7]
[324971265,1714480288065,-1137.4,0.00034794,7]
[324971266,1714480288075,-933.38,0.00034794,7]
[324971267,1714480288085,-500.0,0.00034794,7]
[324971268,1714480288095,-257.80420399,0.00034794,7]
[324971269,1714480288104,-500.0,0.00034794,7]
[324971270,1714480288114,-1628.49,0.00034794,7]
[324971271,1714480288123,-556.41,0.00034794,7]
[324971272,1714480288134,-265.62032147,0.00034794,7]
[324971273,1714480288143,-3242.44,0.00034794,7]
[324971274,1714480288153,-611.4,0.00034794,7]
[324971275,1714480288163,-500.0,0.00034794,7]
[324971276,1714480288173,-500.0,0.00034794,7]
[324971277,1714480288183,-2127.99,0.00034794,7]
[324971278,1714480288193,-500.0,0.00034794,7]
[324971279,1714480288202,-799.99,0.00034794,7]
[324971280,1714480288211,-1320.84,0.00034794,7]
[324971281,1714480288221,-500.0,0.00034794,7]
[324971282,1714480288230,-518.31,0.00034794,7]
[324971283,1714480288240,-225.59207033,0.00034794,7]
[324971284,1714480288249,-500.0,0.00034794,7]
[324971285,1714480288259,-654.2,0.00034794,7]
[324971286,1714480288269,-1525.02,0.00034794,7]
[324971287,1714480288278,-323.47452442,0.00034794,7]
[324971288,1714480288288,-545.68,0.00034794,7]
[324971289,1714480288298,-1273.96,0.00034794,7]
[324971290,1714480288307,-1761.83,0.00034794,7]
[324971291,1714480288320,-639.64,0.00034794,7]
[324971292,1714480288329,-500.0,0.00034794,7]
[324971293,1714480288339,-500.0,0.00034794,7]
[324971294,1714480288348,-555.04,0.00034794,7]
[324971295,1714480288358,-1774.44,0.00034794,7]
[324971296,1714480288367,-1354.57,0.00034794,7]
[324971297,1714480288377,-3447.14,0.00034794,7]
[324971298,1714480288387,-786.77,0.00034794,7]
[324971299,1714480288396,-707.6,0.00034794,7]
[324971300,1714480288406,-569.7,0.00034794,7]
[324971301,1714480288415,-500.0,0.00034794,7]
[324971302,1714480288425,-751.5,0.00034794,7]
[324971303,1714480288435,-490.72230874,0.00034794,7]
[324971304,1714480288445,-500.0,0.00034794,7]
[324971305,1714480288455,-500.0,0.00034794,7]
[324971306,1714480288465,-500.0,0.00034794,30]
[324971307,1714480288475,-1391.74,0.00034794,7]
[324971308,1714480288484,-1469.45,0.00034794,7]
[324971309,1714480288493,-500.0,0.00034794,7]
[324971310,1714480288503,-500.0,0.00034794,7]
[324971311,1714480288512,-1000.0,0.000348,3]